[Event "Titled Tuesday Blitz May 4 2021"]
[White "Trent, Lawrence"]
[Black "Urazayev, Arystanbek"]
[WhiteFideId "408638"]
[BlackFideId "13709810"]
[WhiteElo "2474"]
[BlackElo "2321"]
[Result "0-1"]
[Round "09"]
[TimeControl "180+1"]
[Date "2021.05.04"]
[WhiteClock "0:00:13"]
[BlackClock "0:00:12"]

1. e4 {[%clk 0:03:00]}  c5 {[%clk 0:03:00]} 2. Nc3 {[%clk 0:03:01]}  e6 {[%clk 0:03:00]} 3. f4 {[%clk 0:02:57]}  a6 {[%clk 0:03:00]} 4. Nf3 {[%clk 0:02:57]}  d5 {[%clk 0:03:00]} 5. d4 {[%clk 0:02:56]}  dxe4 {[%clk 0:02:54]} 6. Nxe4 {[%clk 0:02:55]}  cxd4 {[%clk 0:02:54]} 7. Qxd4 {[%clk 0:02:55]}  Qc7 {[%clk 0:02:49]} 8. Bd3 {[%clk 0:02:51]}  Nc6 {[%clk 0:02:49]} 9. Qf2 {[%clk 0:02:51]}  Nb4 {[%clk 0:02:47]} 10. O-O {[%clk 0:02:48]}  Nf6 {[%clk 0:02:46]} 11. Nxf6+ {[%clk 0:02:48]}  gxf6 {[%clk 0:02:46]} 12. Be3 {[%clk 0:02:47]}  Bd7 {[%clk 0:02:38]} 13. Be4 {[%clk 0:02:24]}  f5 {[%clk 0:02:30]} 14. Bd3 {[%clk 0:02:19]}  Rg8 {[%clk 0:02:27]} 15. Ne5 {[%clk 0:02:18]}  Nd5 {[%clk 0:02:21]} 16. Bd4 {[%clk 0:02:12]}  Bc6 {[%clk 0:02:09]} 17. Nxc6 {[%clk 0:02:09]}  Qxc6 {[%clk 0:02:08]} 18. g3 {[%clk 0:02:02]}  h5 {[%clk 0:02:04]} 19. Rae1 {[%clk 0:01:57]}  O-O-O {[%clk 0:01:56]} 20. c3 {[%clk 0:01:11]}  h4 {[%clk 0:01:52]} 21. Qf3 {[%clk 0:01:11]}  Bc5 {[%clk 0:01:43]} 22. Bxc5 {[%clk 0:01:08]}  Qxc5+ {[%clk 0:01:43]} 23. Kg2 {[%clk 0:01:07]}  hxg3 {[%clk 0:01:40]} 24. hxg3 {[%clk 0:01:07]}  Nxf4+ {[%clk 0:01:41]} 25. Qxf4 {[%clk 0:01:06]}  Rxd3 {[%clk 0:01:41]} 26. Rf3 {[%clk 0:01:02]}  Qd5 {[%clk 0:01:40]} 27. Re3 {[%clk 0:00:57]}  Rd2+ {[%clk 0:01:32]} 28. Kg1 {[%clk 0:00:57]}  Rd1+ {[%clk 0:01:30]} 29. Rf1 {[%clk 0:00:57]}  Rh8 {[%clk 0:01:29]} 30. Rf3 {[%clk 0:00:43]}  Rh1+ {[%clk 0:01:20]} 31. Kxh1 {[%clk 0:00:34]}  Rxf1+ {[%clk 0:01:20]} 32. Kg2 {[%clk 0:00:35]}  Rxf3 {[%clk 0:01:18]} 33. Qxf3 {[%clk 0:00:36]}  Qxa2 {[%clk 0:01:02]} 34. Qe2 {[%clk 0:00:30]}  Qd5+ {[%clk 0:01:01]} 35. Kh2 {[%clk 0:00:31]}  Kb8 {[%clk 0:00:51]} 36. Qe3 {[%clk 0:00:30]}  Qb5 {[%clk 0:00:48]} 37. b4 {[%clk 0:00:30]}  Qc6 {[%clk 0:00:46]} 38. Qf4+ {[%clk 0:00:30]}  Qc7 {[%clk 0:00:45]} 39. Qh6 {[%clk 0:00:29]}  Qxc3 {[%clk 0:00:37]} 40. Qf8+ {[%clk 0:00:29]}  Ka7 {[%clk 0:00:38]} 41. Qxf7 {[%clk 0:00:30]}  Qxb4 {[%clk 0:00:32]} 42. Qxe6 {[%clk 0:00:31]}  Qc5 {[%clk 0:00:33]} 43. Kh3 {[%clk 0:00:28]}  a5 {[%clk 0:00:32]} 44. Kh4 {[%clk 0:00:28]}  a4 {[%clk 0:00:33]} 45. Kg5 {[%clk 0:00:28]}  a3 {[%clk 0:00:32]} 46. Qb3 {[%clk 0:00:27]}  Ka6 {[%clk 0:00:22]} 47. Qa4+ {[%clk 0:00:26]}  Kb6 {[%clk 0:00:22]} 48. Qb3+ {[%clk 0:00:26]}  Ka7 {[%clk 0:00:17]} 49. Qa4+ {[%clk 0:00:26]}  Kb8 {[%clk 0:00:17]} 50. Qe8+ {[%clk 0:00:27]}  Kc7 {[%clk 0:00:18]} 51. Qf7+ {[%clk 0:00:27]}  Kc6 {[%clk 0:00:18]} 52. Qe6+ {[%clk 0:00:23]}  Qd6 {[%clk 0:00:19]} 53. Qc4+ {[%clk 0:00:22]}  Kb6 {[%clk 0:00:16]} 54. Qb3+ {[%clk 0:00:21]}  Kc7 {[%clk 0:00:13]} 55. Kxf5 {[%clk 0:00:22]}  Qc5+ {[%clk 0:00:09]} 56. Kf4 {[%clk 0:00:20]}  b5 {[%clk 0:00:09]} 57. Qf7+ {[%clk 0:00:17]}  Kb6 {[%clk 0:00:09]} 58. Qe6+ {[%clk 0:00:16]}  Ka5 {[%clk 0:00:09]} 59. g4 {[%clk 0:00:14]}  Qc4+ {[%clk 0:00:09]} 60. Qxc4 {[%clk 0:00:11]}  bxc4 {[%clk 0:00:10]} 61. g5 {[%clk 0:00:12]}  a2 {[%clk 0:00:11]} 62. g6 {[%clk 0:00:12]}  a1=Q {[%clk 0:00:11]} 63. g7 {[%clk 0:00:13]}  Qxg7 {[%clk 0:00:12]} 0-1


[Site "https://www.chess.com"]

[Event "Titled Tuesday Blitz May 4 2021"]
[White "Tristan, Leonardo"]
[Black "Maiorov, Nikita"]
[WhiteFideId "113816"]
[BlackFideId "13501720"]
[WhiteElo "2404"]
[BlackElo "2440"]
[Result "1-0"]
[Round "09"]
[TimeControl "180+1"]
[Date "2021.05.04"]
[WhiteClock "0:00:04"]
[BlackClock "0:00:01"]

1. d4 {[%clk 0:03:00]}  Nf6 {[%clk 0:02:58]} 2. Bf4 {[%clk 0:03:01]}  e6 {[%clk 0:02:46]} 3. e3 {[%clk 0:03:01]}  c5 {[%clk 0:02:45]} 4. c3 {[%clk 0:03:01]}  b6 {[%clk 0:02:44]} 5. Nd2 {[%clk 0:03:01]}  Be7 {[%clk 0:02:44]} 6. Ngf3 {[%clk 0:02:58]}  O-O {[%clk 0:02:43]} 7. h3 {[%clk 0:02:58]}  cxd4 {[%clk 0:02:41]} 8. exd4 {[%clk 0:02:57]}  Ba6 {[%clk 0:02:41]} 9. Be2 {[%clk 0:02:54]}  Bxe2 {[%clk 0:02:40]} 10. Qxe2 {[%clk 0:02:54]}  d6 {[%clk 0:02:40]} 11. O-O {[%clk 0:02:54]}  Nbd7 {[%clk 0:02:39]} 12. a4 {[%clk 0:02:54]}  a6 {[%clk 0:02:39]} 13. Nc4 {[%clk 0:02:53]}  Qc7 {[%clk 0:02:38]} 14. Ne3 {[%clk 0:02:52]}  Rfd8 {[%clk 0:02:37]} 15. Nd2 {[%clk 0:02:50]}  Bf8 {[%clk 0:02:35]} 16. Rfe1 {[%clk 0:02:48]}  Qb7 {[%clk 0:02:35]} 17. Ndc4 {[%clk 0:02:46]}  Qc6 {[%clk 0:01:59]} 18. Rac1 {[%clk 0:02:16]}  d5 {[%clk 0:01:49]} 19. Ne5 {[%clk 0:02:11]}  Qxa4 {[%clk 0:01:37]} 20. Ra1 {[%clk 0:02:05]}  Qb5 {[%clk 0:01:35]} 21. Qxb5 {[%clk 0:02:03]}  axb5 {[%clk 0:01:34]} 22. Nc6 {[%clk 0:02:04]}  Re8 {[%clk 0:01:33]} 23. Nc2 {[%clk 0:01:53]}  Ra4 {[%clk 0:01:27]} 24. Na7 {[%clk 0:01:43]}  Rxa1 {[%clk 0:01:21]} 25. Rxa1 {[%clk 0:01:42]}  b4 {[%clk 0:01:22]} 26. cxb4 {[%clk 0:01:35]}  Ne4 {[%clk 0:01:14]} 27. b5 {[%clk 0:01:25]}  Ra8 {[%clk 0:01:08]} 28. Ra6 {[%clk 0:01:21]}  Bd6 {[%clk 0:00:59]} 29. Nc6 {[%clk 0:01:13]}  Re8 {[%clk 0:00:56]} 30. Be3 {[%clk 0:00:51]}  Bf8 {[%clk 0:00:52]} 31. Ra7 {[%clk 0:00:50]}  Ndf6 {[%clk 0:00:51]} 32. Rb7 {[%clk 0:00:47]}  Nd6 {[%clk 0:00:44]} 33. Rxb6 {[%clk 0:00:46]}  Nd7 {[%clk 0:00:44]} 34. Ra6 {[%clk 0:00:41]}  Nxb5 {[%clk 0:00:44]} 35. Na3 {[%clk 0:00:34]}  Nd6 {[%clk 0:00:27]} 36. Bf4 {[%clk 0:00:23]}  Nf5 {[%clk 0:00:16]} 37. g4 {[%clk 0:00:19]}  Nh4 {[%clk 0:00:15]} 38. Bg3 {[%clk 0:00:15]}  Nf3+ {[%clk 0:00:15]} 39. Kg2 {[%clk 0:00:16]}  Ne1+ {[%clk 0:00:13]} 40. Kf1 {[%clk 0:00:16]}  Nf3 {[%clk 0:00:12]} 41. Ke2 {[%clk 0:00:14]}  Ng1+ {[%clk 0:00:10]} 42. Kd3 {[%clk 0:00:12]}  Nxh3 {[%clk 0:00:11]} 43. b4 {[%clk 0:00:10]}  f5 {[%clk 0:00:10]} 44. gxf5 {[%clk 0:00:08]}  exf5 {[%clk 0:00:10]} 45. Bc7 {[%clk 0:00:09]}  Nxf2+ {[%clk 0:00:10]} 46. Kc2 {[%clk 0:00:09]}  Re2+ {[%clk 0:00:09]} 47. Kb3 {[%clk 0:00:09]}  Re3+ {[%clk 0:00:09]} 48. Ka2 {[%clk 0:00:08]}  Nd3 {[%clk 0:00:07]} 49. Ra8 {[%clk 0:00:08]}  f4 {[%clk 0:00:07]} 50. Bd6 {[%clk 0:00:08]}  f3 {[%clk 0:00:06]} 51. Ne7+ {[%clk 0:00:06]}  Kf7 {[%clk 0:00:04]} 52. Nf5 {[%clk 0:00:06]}  Re2+ {[%clk 0:00:04]} 53. Kb3 {[%clk 0:00:07]}  f2 {[%clk 0:00:04]} 54. Ra7 {[%clk 0:00:06]}  Ke6 {[%clk 0:00:03]} 55. Bxf8 {[%clk 0:00:06]}  f1=Q {[%clk 0:00:02]} 56. Nxg7+ {[%clk 0:00:06]}  Kf7 {[%clk 0:00:01]} 57. Rxd7+ {[%clk 0:00:06]}  Kg6 {[%clk 0:00:02]} 58. Bc5 {[%clk 0:00:04]}  Kg5 {[%clk 0:00:02]} 59. Rxd5+ {[%clk 0:00:04]}  Kg4 {[%clk 0:00:02]} 60. Nf5 {[%clk 0:00:02]}  Qd1+ {[%clk 0:00:02]} 61. Kc4 {[%clk 0:00:02]}  h5 {[%clk 0:00:02]} 62. Kb5 {[%clk 0:00:02]}  Nb2 {[%clk 0:00:02]} 63. Nc4 {[%clk 0:00:02]}  Qa4+ {[%clk 0:00:02]} 64. Kb6 {[%clk 0:00:02]}  Nxc4+ {[%clk 0:00:03]} 65. Kc7 {[%clk 0:00:02]}  Qb5 {[%clk 0:00:03]} 66. Nd6 {[%clk 0:00:02]}  Nxd6 {[%clk 0:00:03]} 67. Rxd6 {[%clk 0:00:02]}  h4 {[%clk 0:00:03]} 68. Rg6+ {[%clk 0:00:03]}  Kf3 {[%clk 0:00:02]} 69. d5 {[%clk 0:00:03]}  h3 {[%clk 0:00:02]} 70. Rf6+ {[%clk 0:00:04]}  Ke4 {[%clk 0:00:01]} 71. d6 {[%clk 0:00:04]}  Rd2 {[%clk 0:00:01]} 72. Re6+ {[%clk 0:00:03]}  Kf5 {[%clk 0:00:01]} 73. Rh6 {[%clk 0:00:04]}  h2 {[%clk 0:00:01]} 74. Rh5+ {[%clk 0:00:04]} 1-0


[Site "https://www.chess.com"]

[Event "Titled Tuesday Blitz May 4 2021"]
[White "Vargas, Gabriela"]
[Black "Rorrer, Grayson"]
[WhiteFideId "3700860"]
[BlackFideId "30944996"]
[WhiteElo "2116"]
[BlackElo "2393"]
[Result "0-1"]
[Round "09"]
[TimeControl "180+1"]
[Date "2021.05.04"]
[WhiteClock "0:00:13"]
[BlackClock "0:01:11"]

1. d4 {[%clk 0:02:55]}  Nf6 {[%clk 0:02:58]} 2. Nf3 {[%clk 0:02:55]}  e6 {[%clk 0:02:56]} 3. Bg5 {[%clk 0:02:55]}  c5 {[%clk 0:02:56]} 4. c3 {[%clk 0:02:55]}  cxd4 {[%clk 0:02:56]} 5. cxd4 {[%clk 0:02:55]}  Be7 {[%clk 0:02:57]} 6. e3 {[%clk 0:02:56]}  d6 {[%clk 0:02:57]} 7. Nbd2 {[%clk 0:02:56]}  Nbd7 {[%clk 0:02:57]} 8. Bd3 {[%clk 0:02:55]}  O-O {[%clk 0:02:57]} 9. O-O {[%clk 0:02:55]}  b6 {[%clk 0:02:58]} 10. Rc1 {[%clk 0:02:55]}  Bb7 {[%clk 0:02:58]} 11. Qe2 {[%clk 0:02:55]}  a6 {[%clk 0:02:59]} 12. Rc2 {[%clk 0:02:49]}  e5 {[%clk 0:02:57]} 13. dxe5 {[%clk 0:02:48]}  dxe5 {[%clk 0:02:57]} 14. Bf5 {[%clk 0:02:43]}  h6 {[%clk 0:02:51]} 15. Bxf6 {[%clk 0:02:30]}  Bxf6 {[%clk 0:02:52]} 16. Ne4 {[%clk 0:02:22]}  Bxe4 {[%clk 0:02:43]} 17. Bxe4 {[%clk 0:02:23]}  Ra7 {[%clk 0:02:44]} 18. Rd1 {[%clk 0:02:22]}  Qe7 {[%clk 0:02:41]} 19. Rcd2 {[%clk 0:02:06]}  Nc5 {[%clk 0:02:38]} 20. Bb1 {[%clk 0:02:06]}  Raa8 {[%clk 0:02:24]} 21. b4 {[%clk 0:01:46]}  Na4 {[%clk 0:02:21]} 22. Qd3 {[%clk 0:01:38]}  g6 {[%clk 0:02:09]} 23. Qb3 {[%clk 0:01:33]}  b5 {[%clk 0:01:59]} 24. Rd7 {[%clk 0:01:33]}  Qe8 {[%clk 0:01:58]} 25. Bxg6 {[%clk 0:01:31]}  Nb6 {[%clk 0:01:57]} 26. R7d6 {[%clk 0:01:07]}  Nc4 {[%clk 0:01:57]} 27. Rxf6 {[%clk 0:00:59]}  fxg6 {[%clk 0:01:57]} 28. Rxf8+ {[%clk 0:00:58]}  Kxf8 {[%clk 0:01:57]} 29. Qd3 {[%clk 0:00:50]}  e4 {[%clk 0:01:54]} 30. Qd4 {[%clk 0:00:40]}  exf3 {[%clk 0:01:49]} 31. Qh8+ {[%clk 0:00:40]}  Kf7 {[%clk 0:01:48]} 32. Qh7+ {[%clk 0:00:40]}  Kf6 {[%clk 0:01:47]} 33. Rd7 {[%clk 0:00:35]}  Rd8 {[%clk 0:01:30]} 34. Qg7+ {[%clk 0:00:33]}  Ke6 {[%clk 0:01:30]} 35. Rxd8 {[%clk 0:00:19]}  Qxd8 {[%clk 0:01:31]} 36. Qxg6+ {[%clk 0:00:19]}  Qf6 {[%clk 0:01:31]} 37. Qe4+ {[%clk 0:00:18]}  Qe5 {[%clk 0:01:24]} 38. Qc6+ {[%clk 0:00:18]}  Ke7 {[%clk 0:01:23]} 39. gxf3 {[%clk 0:00:18]}  Qa1+ {[%clk 0:01:20]} 40. Kg2 {[%clk 0:00:19]}  Qg7+ {[%clk 0:01:21]} 41. Kh3 {[%clk 0:00:16]}  Qf6 {[%clk 0:01:22]} 42. Qc7+ {[%clk 0:00:14]}  Kf8 {[%clk 0:01:23]} 43. Qc8+ {[%clk 0:00:14]}  Kg7 {[%clk 0:01:23]} 44. Qd7+ {[%clk 0:00:14]}  Qf7 {[%clk 0:01:20]} 45. Qg4+ {[%clk 0:00:14]}  Kf8 {[%clk 0:01:13]} 46. Qc8+ {[%clk 0:00:14]}  Qe8 {[%clk 0:01:14]} 47. Qc5+ {[%clk 0:00:14]}  Qe7 {[%clk 0:01:14]} 48. Qc8+ {[%clk 0:00:13]}  Kf7 {[%clk 0:01:13]} 49. Qxa6 {[%clk 0:00:13]}  Qe6+ {[%clk 0:01:08]} 50. Qxe6+ {[%clk 0:00:13]}  Kxe6 {[%clk 0:01:09]} 51. Kg4 {[%clk 0:00:14]}  Ne5+ {[%clk 0:01:09]} 52. Kf4 {[%clk 0:00:13]}  Nd3+ {[%clk 0:01:09]} 53. Kg4 {[%clk 0:00:13]}  Nxb4 {[%clk 0:01:07]} 54. Kh5 {[%clk 0:00:13]}  Nxa2 {[%clk 0:01:07]} 55. Kxh6 {[%clk 0:00:14]}  b4 {[%clk 0:01:08]} 56. f4 {[%clk 0:00:13]}  b3 {[%clk 0:01:09]} 57. Kg6 {[%clk 0:00:14]}  b2 {[%clk 0:01:09]} 58. f5+ {[%clk 0:00:15]}  Kd7 {[%clk 0:01:08]} 59. f6 {[%clk 0:00:15]}  b1=Q+ {[%clk 0:01:09]} 60. Kg7 {[%clk 0:00:15]}  Qb2 {[%clk 0:01:10]} 61. h4 {[%clk 0:00:13]}  Nb4 {[%clk 0:01:10]} 62. h5 {[%clk 0:00:13]}  Nd5 {[%clk 0:01:10]} 63. h6 {[%clk 0:00:12]}  Qxf6+ {[%clk 0:01:11]} 64. Kg8 {[%clk 0:00:13]}  Ne7+ {[%clk 0:01:12]} 65. Kh7 {[%clk 0:00:13]}  Qg6+ {[%clk 0:01:12]} 66. Kh8 {[%clk 0:00:13]}  Ke8 {[%clk 0:01:11]} 0-1


[Site "https://www.chess.com"]

[Event "Titled Tuesday Blitz May 4 2021"]
[White "Volkov, Maksim"]
[Black "Kapitanchuk, Tomas"]
[WhiteFideId "54123070"]
[BlackFideId "135046"]
[WhiteElo "2113"]
[BlackElo "1955"]
[Result "1/2-1/2"]
[Round "09"]
[TimeControl "180+1"]
[Date "2021.05.04"]
[WhiteClock "0:00:05"]
[BlackClock "0:00:03"]

1. d4 {[%clk 0:03:00]}  Nf6 {[%clk 0:03:00]} 2. c4 {[%clk 0:03:00]}  e6 {[%clk 0:03:00]} 3. g3 {[%clk 0:03:00]}  Bb4+ {[%clk 0:02:56]} 4. Bd2 {[%clk 0:02:59]}  c5 {[%clk 0:02:54]} 5. Nf3 {[%clk 0:02:47]}  O-O {[%clk 0:02:51]} 6. Bg2 {[%clk 0:02:47]}  Bxd2+ {[%clk 0:02:46]} 7. Qxd2 {[%clk 0:02:45]}  cxd4 {[%clk 0:02:42]} 8. Nxd4 {[%clk 0:02:45]}  Nc6 {[%clk 0:02:41]} 9. O-O {[%clk 0:02:44]}  d5 {[%clk 0:02:40]} 10. Rd1 {[%clk 0:02:32]}  Qe7 {[%clk 0:02:22]} 11. Nc3 {[%clk 0:02:26]}  Nxd4 {[%clk 0:02:06]} 12. Qxd4 {[%clk 0:02:25]}  dxc4 {[%clk 0:02:04]} 13. Qxc4 {[%clk 0:02:25]}  a6 {[%clk 0:01:56]} 14. a4 {[%clk 0:02:18]}  Bd7 {[%clk 0:01:49]} 15. Bxb7 {[%clk 0:02:15]}  Rab8 {[%clk 0:01:49]} 16. Qxa6 {[%clk 0:02:09]}  Bxa4 {[%clk 0:01:43]} 17. Rxa4 {[%clk 0:01:58]}  Rxb7 {[%clk 0:01:41]} 18. Nb5 {[%clk 0:01:31]}  Rfb8 {[%clk 0:01:35]} 19. Nd4 {[%clk 0:01:26]}  Qd7 {[%clk 0:01:25]} 20. Rd3 {[%clk 0:01:10]}  Rb6 {[%clk 0:00:53]} 21. Qa7 {[%clk 0:00:25]}  Qxa7 {[%clk 0:00:43]} 22. Rxa7 {[%clk 0:00:25]}  Rxb2 {[%clk 0:00:44]} 23. Nc6 {[%clk 0:00:25]}  Re8 {[%clk 0:00:38]} 24. Kf1 {[%clk 0:00:22]}  h5 {[%clk 0:00:32]} 25. h3 {[%clk 0:00:21]}  Ne4 {[%clk 0:00:28]} 26. Rd4 {[%clk 0:00:18]}  Nf6 {[%clk 0:00:20]} 27. e3 {[%clk 0:00:16]}  Rb1+ {[%clk 0:00:20]} 28. Kg2 {[%clk 0:00:16]}  Rb2 {[%clk 0:00:21]} 29. Ne5 {[%clk 0:00:15]}  Rf8 {[%clk 0:00:20]} 30. g4 {[%clk 0:00:16]}  hxg4 {[%clk 0:00:21]} 31. hxg4 {[%clk 0:00:16]}  Rb5 {[%clk 0:00:20]} 32. f4 {[%clk 0:00:15]}  Nd5 {[%clk 0:00:19]} 33. Kf3 {[%clk 0:00:14]}  Rb3 {[%clk 0:00:19]} 34. Nc4 {[%clk 0:00:14]}  Rc8 {[%clk 0:00:18]} 35. g5 {[%clk 0:00:13]}  Kf8 {[%clk 0:00:16]} 36. Rxf7+ {[%clk 0:00:12]}  Kxf7 {[%clk 0:00:16]} 37. Nd6+ {[%clk 0:00:12]}  Kg6 {[%clk 0:00:16]} 38. Nxc8 {[%clk 0:00:13]}  Rxe3+ {[%clk 0:00:17]} 39. Kg4 {[%clk 0:00:13]}  Rc3 {[%clk 0:00:15]} 40. Nd6 {[%clk 0:00:13]}  Ne3+ {[%clk 0:00:15]} 41. Kh4 {[%clk 0:00:11]}  Ng2+ {[%clk 0:00:14]} 42. Kg4 {[%clk 0:00:11]}  Ne3+ {[%clk 0:00:12]} 43. Kh4 {[%clk 0:00:11]}  Rc6 {[%clk 0:00:12]} 44. Kh3 {[%clk 0:00:09]}  Kh5 {[%clk 0:00:12]} 45. Re4 {[%clk 0:00:08]}  Ng4 {[%clk 0:00:07]} 46. Rxe6 {[%clk 0:00:06]}  Rc3+ {[%clk 0:00:07]} 47. Kg2 {[%clk 0:00:06]}  Ne3+ {[%clk 0:00:07]} 48. Kf2 {[%clk 0:00:05]}  Nd5 {[%clk 0:00:07]} 49. f5 {[%clk 0:00:02]}  Kxg5 {[%clk 0:00:07]} 50. Ke2 {[%clk 0:00:03]}  Nf4+ {[%clk 0:00:07]} 51. Kd2 {[%clk 0:00:02]}  Rd3+ {[%clk 0:00:06]} 52. Kc2 {[%clk 0:00:02]}  Rd5 {[%clk 0:00:05]} 53. Ne4+ {[%clk 0:00:02]}  Kxf5 {[%clk 0:00:05]} 54. Re8 {[%clk 0:00:03]}  Rd4 {[%clk 0:00:03]} 55. Nc3 {[%clk 0:00:04]}  Ne6 {[%clk 0:00:01]} 56. Ra8 {[%clk 0:00:04]}  Rf4 {[%clk 0:00:02]} 57. Ra5+ {[%clk 0:00:04]}  Kg4 {[%clk 0:00:02]} 58. Ra6 {[%clk 0:00:04]}  Nd4+ {[%clk 0:00:02]} 59. Kd3 {[%clk 0:00:04]}  g5 {[%clk 0:00:03]} 60. Ra4 {[%clk 0:00:04]}  Nf3 {[%clk 0:00:02]} 61. Rxf4+ {[%clk 0:00:04]}  Kxf4 {[%clk 0:00:03]} 62. Ne2+ {[%clk 0:00:03]}  Kg4 {[%clk 0:00:03]} 63. Ke3 {[%clk 0:00:04]}  Ne5 {[%clk 0:00:03]} 64. Ng1 {[%clk 0:00:04]}  Nc4+ {[%clk 0:00:03]} 65. Kf2 {[%clk 0:00:04]}  Nd2 {[%clk 0:00:03]} 66. Kg2 {[%clk 0:00:04]}  Ne4 {[%clk 0:00:03]} 67. Nh3 {[%clk 0:00:04]}  Kf5 {[%clk 0:00:03]} 68. Nxg5 {[%clk 0:00:05]} 1/2-1/2


[Site "https://www.chess.com"]

[Event "Titled Tuesday Blitz May 4 2021"]
[White "Weetik, Vjacheslav"]
[Black "Zverev, Lev"]
[WhiteFideId "4153472"]
[BlackFideId "24250775"]
[WhiteElo "2469"]
[BlackElo "2107"]
[Result "0-1"]
[Round "09"]
[TimeControl "180+1"]
[Date "2021.05.04"]
[WhiteClock "0:00:03"]
[BlackClock "0:00:59"]

1. d4 {[%clk 0:03:00]}  Nf6 {[%clk 0:02:58]} 2. Bf4 {[%clk 0:02:58]}  d5 {[%clk 0:02:53]} 3. e3 {[%clk 0:02:57]}  e6 {[%clk 0:02:45]} 4. Nf3 {[%clk 0:02:57]}  c5 {[%clk 0:02:44]} 5. c3 {[%clk 0:02:52]}  Nc6 {[%clk 0:02:42]} 6. Nbd2 {[%clk 0:02:50]}  cxd4 {[%clk 0:02:40]} 7. exd4 {[%clk 0:02:50]}  Bd6 {[%clk 0:02:41]} 8. Ne5 {[%clk 0:02:39]}  Qc7 {[%clk 0:02:37]} 9. Ndf3 {[%clk 0:02:29]}  O-O {[%clk 0:02:37]} 10. Bd3 {[%clk 0:02:26]}  Ne4 {[%clk 0:02:36]} 11. Bg3 {[%clk 0:01:55]}  Nxg3 {[%clk 0:02:31]} 12. Bxh7+ {[%clk 0:00:44]}  Kxh7 {[%clk 0:02:25]} 13. hxg3+ {[%clk 0:00:44]}  Kg8 {[%clk 0:02:24]} 14. Ng5 {[%clk 0:00:44]}  g6 {[%clk 0:01:56]} 15. Qg4 {[%clk 0:00:28]}  Bxe5 {[%clk 0:01:51]} 16. Qh4 {[%clk 0:00:23]}  Re8 {[%clk 0:01:49]} 17. dxe5 {[%clk 0:00:15]}  Qxe5+ {[%clk 0:01:48]} 18. Kf1 {[%clk 0:00:16]}  Qg7 {[%clk 0:01:47]} 19. Nh7 {[%clk 0:00:16]}  Rd8 {[%clk 0:01:42]} 20. Nf6+ {[%clk 0:00:15]}  Kf8 {[%clk 0:01:42]} 21. Qg5 {[%clk 0:00:16]}  Ke7 {[%clk 0:01:17]} 22. Nxd5+ {[%clk 0:00:10]}  Kd6 {[%clk 0:01:14]} 23. Nf6 {[%clk 0:00:09]}  Kc7 {[%clk 0:01:11]} 24. Rh7 {[%clk 0:00:06]}  Qf8 {[%clk 0:01:12]} 25. Re1 {[%clk 0:00:05]}  e5 {[%clk 0:01:07]} 26. Qxg6 {[%clk 0:00:06]}  Be6 {[%clk 0:01:05]} 27. Qg5 {[%clk 0:00:04]}  Qd6 {[%clk 0:01:02]} 28. Ne4 {[%clk 0:00:03]}  Qd3+ {[%clk 0:01:01]} 29. Kg1 {[%clk 0:00:04]}  Rh8 {[%clk 0:01:01]} 30. Nc5 {[%clk 0:00:03]}  Qxh7 {[%clk 0:00:59]} 0-1


[Site "https://www.chess.com"]

[Event "Titled Tuesday Blitz May 4 2021"]
[White "Wilson, Elvin"]
[Black "Serikbay, Assel"]
[WhiteFideId "2014874"]
[BlackFideId "13706799"]
[WhiteElo "2220"]
[BlackElo "2044"]
[Result "0-1"]
[Round "09"]
[TimeControl "180+1"]
[Date "2021.05.04"]
[WhiteClock "0:00:01"]
[BlackClock "0:00:03"]

1. c4 {[%clk 0:03:00]}  e5 {[%clk 0:02:52]} 2. g3 {[%clk 0:03:00]}  Nf6 {[%clk 0:02:51]} 3. Bg2 {[%clk 0:03:01]}  c6 {[%clk 0:02:52]} 4. d4 {[%clk 0:03:00]}  exd4 {[%clk 0:02:52]} 5. Qxd4 {[%clk 0:03:00]}  d5 {[%clk 0:02:53]} 6. Nf3 {[%clk 0:02:59]}  Be7 {[%clk 0:02:52]} 7. cxd5 {[%clk 0:02:58]}  cxd5 {[%clk 0:02:52]} 8. O-O {[%clk 0:02:58]}  Nc6 {[%clk 0:02:53]} 9. Qa4 {[%clk 0:02:58]}  O-O {[%clk 0:02:53]} 10. Nc3 {[%clk 0:02:58]}  Be6 {[%clk 0:02:45]} 11. Rd1 {[%clk 0:02:56]}  a6 {[%clk 0:02:36]} 12. Be3 {[%clk 0:02:16]}  b5 {[%clk 0:02:34]} 13. Qc2 {[%clk 0:02:02]}  Rc8 {[%clk 0:02:25]} 14. Rac1 {[%clk 0:01:40]}  Qc7 {[%clk 0:02:11]} 15. Qb1 {[%clk 0:01:37]}  Qb7 {[%clk 0:02:09]} 16. Nd4 {[%clk 0:01:32]}  Ne5 {[%clk 0:02:03]} 17. Bf4 {[%clk 0:01:23]}  Nc4 {[%clk 0:02:00]} 18. b3 {[%clk 0:01:21]}  Na3 {[%clk 0:01:59]} 19. Qb2 {[%clk 0:01:21]}  b4 {[%clk 0:01:57]} 20. Na4 {[%clk 0:01:21]}  Nb5 {[%clk 0:01:48]} 21. Be5 {[%clk 0:00:58]}  Rfd8 {[%clk 0:01:28]} 22. Nxe6 {[%clk 0:00:44]}  fxe6 {[%clk 0:01:26]} 23. Rxc8 {[%clk 0:00:36]}  Rxc8 {[%clk 0:01:22]} 24. Rc1 {[%clk 0:00:36]}  Rf8 {[%clk 0:00:39]} 25. h3 {[%clk 0:00:33]}  Qd7 {[%clk 0:00:23]} 26. e3 {[%clk 0:00:29]}  Ne4 {[%clk 0:00:18]} 27. Bxe4 {[%clk 0:00:20]}  dxe4 {[%clk 0:00:19]} 28. Bxg7 {[%clk 0:00:19]}  Rf7 {[%clk 0:00:19]} 29. Be5 {[%clk 0:00:16]}  Qd3 {[%clk 0:00:18]} 30. Qc2 {[%clk 0:00:13]}  Qxc2 {[%clk 0:00:17]} 31. Rxc2 {[%clk 0:00:13]}  Bf6 {[%clk 0:00:15]} 32. Bxf6 {[%clk 0:00:12]}  Rxf6 {[%clk 0:00:15]} 33. Nc5 {[%clk 0:00:12]}  Nc3 {[%clk 0:00:12]} 34. a3 {[%clk 0:00:11]}  a5 {[%clk 0:00:11]} 35. axb4 {[%clk 0:00:11]}  axb4 {[%clk 0:00:12]} 36. Na6 {[%clk 0:00:11]}  Nd5 {[%clk 0:00:11]} 37. Rc4 {[%clk 0:00:11]}  Rf7 {[%clk 0:00:07]} 38. Nxb4 {[%clk 0:00:09]}  Rb7 {[%clk 0:00:07]} 39. Nc6 {[%clk 0:00:08]}  Rxb3 {[%clk 0:00:06]} 40. Rxe4 {[%clk 0:00:09]}  Kf7 {[%clk 0:00:06]} 41. Nd4 {[%clk 0:00:08]}  Rb1+ {[%clk 0:00:06]} 42. Kg2 {[%clk 0:00:07]}  Rb2 {[%clk 0:00:07]} 43. Nxe6 {[%clk 0:00:06]}  Nf6 {[%clk 0:00:06]} 44. Ng5+ {[%clk 0:00:05]}  Kg6 {[%clk 0:00:05]} 45. Re5 {[%clk 0:00:03]}  h6 {[%clk 0:00:05]} 46. Nf3 {[%clk 0:00:03]}  Nd7 {[%clk 0:00:05]} 47. Re6+ {[%clk 0:00:03]}  Kg7 {[%clk 0:00:05]} 48. Rd6 {[%clk 0:00:03]}  Nf6 {[%clk 0:00:04]} 49. g4 {[%clk 0:00:03]}  Rc2 {[%clk 0:00:04]} 50. Re6 {[%clk 0:00:01]}  Ra2 {[%clk 0:00:03]} 0-1


[Site "https://www.chess.com"]

[Event "Titled Tuesday Blitz May 4 2021"]
[White "Yang, Kaiqi"]
[Black "Vovk, Orest"]
[WhiteFideId "8604398"]
[BlackFideId "14113490"]
[WhiteElo "2373"]
[BlackElo "2203"]
[Result "1-0"]
[Round "09"]
[TimeControl "180+1"]
[Date "2021.05.04"]
[WhiteClock "0:02:00"]
[BlackClock "0:01:33"]

1. d4 {[%clk 0:03:00]}  Nc6 {[%clk 0:02:35]} 2. Nf3 {[%clk 0:02:57]}  d6 {[%clk 0:02:34]} 3. g3 {[%clk 0:02:51]}  Bg4 {[%clk 0:02:34]} 4. Bg2 {[%clk 0:02:51]}  e6 {[%clk 0:02:33]} 5. h3 {[%clk 0:02:49]}  Bh5 {[%clk 0:02:25]} 6. c4 {[%clk 0:02:47]}  Be7 {[%clk 0:02:23]} 7. Nc3 {[%clk 0:02:47]}  Nf6 {[%clk 0:02:14]} 8. O-O {[%clk 0:02:47]}  O-O {[%clk 0:02:12]} 9. b3 {[%clk 0:02:41]}  Nd7 {[%clk 0:02:10]} 10. Bb2 {[%clk 0:02:38]}  e5 {[%clk 0:02:04]} 11. d5 {[%clk 0:02:32]}  Bxf3 {[%clk 0:02:00]} 12. exf3 {[%clk 0:02:28]}  Nd4 {[%clk 0:01:59]} 13. f4 {[%clk 0:02:26]}  Bf6 {[%clk 0:01:54]} 14. Ne4 {[%clk 0:02:21]}  Nc5 {[%clk 0:01:36]} 15. fxe5 {[%clk 0:02:01]}  dxe5 {[%clk 0:01:33]} 16. Nxc5 {[%clk 0:02:00]} 1-0


[Site "https://www.chess.com"]